bitfinex/quotes_ETHUSD_20240717
["timestamp","ask_amount","ask_price","bid_price","bid_amount"]
[1721217944407,2.89577392,3455.3,3454.6,3.0]
[1721217944605,2.89577392,3455.3,3454.5,3.0]
[1721217944809,2.89425,3455.2,3454.6,0.30110698]
[1721217945226,2.89566523,3455.1,3454.6,0.30110698]
[1721217946020,2.89566523,3455.1,3454.3,2.89487]
[1721217946236,2.89523421,3455.1,3454.2,2.89496]
[1721217946421,2.89523421,3455.1,3454.2,2.89499]
[1721217946810,2.89523421,3455.1,3454.3,2.89493]
[1721217947014,2.89523421,3455.1,3454.3,3.19592587]
[1721217947239,3.47417863,3455.1,3454.3,0.30099587]
[1721217947444,3.47417863,3455.1,3454.3,3.19592587]
[1721217947740,3.47417863,3455.1,3454.3,0.30099587]
[1721217947931,3.47417863,3455.1,3454.4,7.44]
[1721217951013,8.83044863,3455.1,3454.4,7.44]
[1721217951602,11.72471863,3455.1,3454.4,7.44]
[1721217951822,11.7258661,3455.1,3454.4,7.44]
[1721217952056,14.7258661,3455.1,3454.4,7.44]
[1721217953874,14.7258661,3455.1,3453.5,2.37]
[1721217954031,2.89511,3454.1,3453.5,2.37]
[1721217954367,2.462,3454.9,3453.8,2.89535]
[1721217954660,2.89469,3454.6,3453.8,2.89535]
[1721217954970,2.89477,3454.5,3453.8,2.89535]
[1721217955172,0.07206728,3454.4,3453.8,2.89535]
[1721217955480,2.89477,3454.5,3453.9,0.60917847]
[1721217955663,0.07214965,3454.3,3453.6,3.1964347]
[1721217955863,2.96692728,3454.4,3453.6,3.1964347]
[1721217956020,0.07223202,3454.2,3453.6,3.1964347]
[1721217956222,2.89505,3454.2,3453.6,0.3009647]
[1721217956461,0.0723144,3454.1,3453.6,0.3009647]
[1721217956661,0.0723144,3454.1,3453.6,0.31965547]
[1721217956882,2.89495,3454.3,3453.6,0.31965547]
[1721217957063,0.07237551,3454.0,3453.5,5.66348562]
[1721217957274,2.89504,3454.2,3453.5,5.66348562]
[1721217957454,0.0724579,3453.9,3453.5,5.66348562]
[1721217957659,2.89504,3454.2,3453.5,2.76789562]
[1721217957867,0.07254029,3453.8,3453.5,0.30089562]
[1721217958072,2.89504,3454.2,3453.4,2.89569]
[1721217958582,0.07229313,3454.1,3453.4,2.89569]
[1721217958756,0.07229313,3454.1,3453.4,4.05084646]
[1721217959556,0.07229313,3454.1,3453.5,2.89559]
[1721217960070,5.33465,3454.0,3453.4,0.30089983]
[1721217960244,5.33465,3454.0,3453.2,2.89584]
[1721217960245,2.89532,3453.9,3453.2,2.89584]
[1721217960645,0.07205052,3453.8,3453.5,2.89561]
[1721217960860,0.07205052,3453.8,3453.5,3.185171]
[1721217961060,2.895,3454.3,3453.5,3.185171]
[1721217961258,2.89516,3454.1,3453.3,2.89578]
[1721217961676,0.07203429,3454.0,3453.3,2.89578]
[1721217962267,2.89534,3453.9,3453.2,0.30094812]
[1721217962676,2.89545,3453.7,3453.2,0.30094812]
[1721217962999,0.07205042,3453.6,3453.0,2.89601]
[1721217963190,0.07205042,3453.6,3453.0,4.234111]
[1721217963385,2.89536,3453.8,3453.0,4.234111]
[1721217963588,0.07210013,3453.7,3453.0,4.234111]
[1721217963888,2.89536,3453.8,3453.0,4.234111]
[1721217964097,2.89544,3453.7,3453.0,4.234111]
[1721217964314,2.96754013,3453.7,3453.0,4.234111]
[1721217964608,0.07210013,3453.7,3453.1,1.4570311]
[1721217964807,2.462,3454.4,3453.1,4.3529311]
[1721217964970,2.89541,3453.8,3453.1,2.8959]
[1721217965175,0.07209383,3453.7,3453.1,2.8959]
[1721217965375,2.89541,3453.8,3453.1,2.8959]
[1721217965577,0.07209383,3453.7,3453.1,2.8959]
[1721217965796,2.89541,3453.8,3453.1,2.8959]
[1721217966007,0.0711431,3453.7,3453.1,2.8959]
[1721217966311,3.474486,3453.8,3453.1,2.8959]
[1721217966504,2.89545,3453.7,3452.9,2.89604]
[1721217966828,2.89545,3453.7,3453.0,2.89603]
[1721217967126,0.07109287,3453.6,3453.0,2.89603]
[1721217967788,2.89567,3453.5,3452.6,8.1567]
[1721217968010,0.07098876,3453.4,3452.9,2.89611]
[1721217968228,0.07098876,3453.4,3452.7,4.55967]
[1721217968229,2.8953,3453.9,3453.1,2.89593]
[1721217968445,2.89514,3454.1,3453.3,2.89577]
[1721217968446,0.07099464,3453.8,3453.3,2.89577]
[1721217968737,0.07099464,3453.8,3453.3,5.18501]
[1721217968892,2.89498,3454.3,3453.4,2.95358756]
[1721217968893,2.89496,3454.3,3453.4,2.95358756]
[1721217972154,0.07017987,3455.0,3454.5,2.89476]
[1721217972447,5.26403,3455.4,3454.0,5.4288]
[1721217972448,0.0682694,3454.9,3454.1,2.89506]
[1721217972823,2.462,3455.3,3454.0,2.89515]
[1721217973025,2.89445,3454.9,3454.1,2.89509]
[1721217973221,2.89445,3454.9,3453.6,7.44]
[1721217973222,2.368,3454.6,3453.6,7.44]
[1721217973429,2.89502,3454.2,3453.6,7.44]
[1721217973613,2.89519,3454.0,3453.6,7.44]
[1721217973813,0.06863457,3454.1,3453.3,2.89574]
[1721217973814,0.06861394,3453.9,3453.3,2.89574]
[1721217974155,5.35755,3453.6,3453.2,4.0]
[1721217974445,2.8957,3453.4,3452.6,10.33633]
[1721217974647,2.8957,3453.4,3452.6,2.89633]
[1721217975855,2.4935,3453.8,3453.0,2.89597]
[1721217976036,2.462,3454.1,3453.1,2.89593]
[1721217976037,2.89532,3453.9,3453.1,2.89593]
[1721217976237,4.252876,3453.9,3453.1,2.89593]
[1721217976419,2.89536,3453.8,3452.9,2.89606]
[1721217976621,2.89536,3453.8,3453.0,2.89602]
[1721217977552,2.89536,3453.8,3453.1,2.89594]
[1721217978086,2.89536,3453.8,3452.9,2.89604]
[1721217978214,2.89559,3453.6,3452.7,2.89621]
[1721217978410,2.89577,3453.4,3452.6,3.19678781]
[1721217978654,4.9436,3453.3,3452.3,0.4539541]
[1721217978952,4.9436,3453.3,3452.1,2.89678]
[1721217978953,2.89619,3452.9,3452.1,2.89678]
[1721217979273,2.896,3453.1,3452.1,2.89678]
[1721217979430,2.8961,3453.0,3452.1,2.89678]
[1721217979634,2.8961,3453.0,3452.1,3.19744146]
[1721217979826,2.8961,3453.0,3452.1,4.25021615]
[1721217980168,2.4737,3452.6,3452.1,0.30065676]
[1721217980467,0.06767262,3452.5,3452.0,2.89687]
[1721217980756,0.06767262,3452.5,3451.8,2.89702]
[1721217980970,0.06767262,3452.5,3452.1,2.89678]
[1721217981903,0.06767262,3452.5,3452.0,0.30067813]
[1721217982018,2.96417262,3452.5,3451.7,2.89705]
[1721217982217,2.96417262,3452.5,3451.7,4.57038585]
[1721217982465,0.06767262,3452.5,3451.8,1.75793188]
[1721217982670,0.06767262,3452.5,3452.2,2.89669]
[1721217982952,2.89595,3453.1,3452.2,2.89669]
[1721217983190,0.06722987,3452.4,3452.2,2.89669]
[1721217983455,0.06734479,3452.3,3452.2,3.476038]
[1721217983815,2.89603,3453.0,3452.2,3.476038]
[1721217984056,0.06774087,3452.9,3452.2,3.476038]
[1721217986020,2.89601,3453.1,3452.2,3.476038]
[1721217986258,0.06779295,3453.0,3452.2,3.476038]
[1721217986631,2.96382295,3453.0,3452.2,2.89669]
[1721217986950,2.89651,3452.5,3451.7,2.89711]
[1721217987152,2.89651,3452.5,3451.5,10.79132852]
[1721217987455,2.89653,3452.4,3451.7,2.8971]
[1721217987666,2.89653,3452.4,3451.2,0.45410618]
[1721217987667,2.89692,3452.0,3451.2,0.45410618]
[1721217987820,2.89696,3451.9,3451.1,2.89756]
[1721217988027,2.89692,3452.0,3451.2,2.89753]
[1721217988028,0.0671991,3451.8,3451.2,2.89753]
[1721217988227,2.89692,3452.0,3451.2,2.89753]
[1721217988434,2.89692,3452.0,3451.2,3.477039]
[1721217988435,0.06725122,3451.9,3451.2,3.477039]
[1721217988840,0.06725122,3451.9,3451.3,2.8974]
[1721217989158,2.89671,3452.2,3451.3,2.8974]
[1721217989340,0.06713733,3451.8,3451.4,2.89731]
[1721217989531,2.3115,3452.3,3451.5,2.89725]
[1721217990059,0.06734578,3452.2,3451.5,2.89725]
[1721217990257,0.06734578,3452.2,3451.6,0.05793533]
[1721217990457,0.06734578,3452.2,3451.5,3.5346659]
[1721217991026,0.06734578,3452.2,3451.6,2.8972]
[1721217991366,2.89684,3452.1,3451.2,0.579509]
[1721217991656,2.347,3451.9,3451.2,0.579509]
[1721217991861,2.347,3451.9,3451.1,0.30049096]
[1721217991862,0.0671385,3451.8,3451.1,0.30049096]
[1721217992068,2.89736,3451.5,3450.8,2.89785]
[1721217992358,2.89715,3451.7,3450.7,3.19834739]
[1721217992520,0.06692767,3451.4,3450.7,4.11249113]
[1721217992727,2.8973,3451.5,3450.7,4.11249113]
[1721217992925,0.06687438,3451.3,3450.7,4.11249113]
[1721217993133,0.06692651,3451.4,3450.7,4.11249113]
[1721217993360,0.06682224,3451.2,3450.8,2.89786]
[1721217993660,0.0667701,3451.1,3450.8,2.89786]
[1721217994029,2.89729,3451.5,3450.8,2.89786]
[1721217994359,0.06692651,3451.4,3450.8,2.89786]
[1721217994927,0.06692651,3451.4,3450.9,2.89773]
[1721217995365,2.89716,3451.7,3450.9,2.89773]
[1721217995558,2.347,3451.9,3450.7,3.19836739]
[1721217995559,0.06687438,3451.3,3450.7,3.19836739]
[1721217995770,2.89739,3451.4,3450.7,0.30041739]
[1721217996063,0.06683261,3451.3,3450.7,3.19836739]
[1721217996365,0.06683261,3451.3,3450.7,0.30041739]
[1721217996660,0.06683261,3451.3,3450.7,3.19836739]
[1721217997050,0.06683261,3451.3,3450.7,0.30041739]
[1721217997051,2.3828,3451.2,3450.7,0.30041739]
[1721217997244,2.3828,3451.2,3449.9,2.89856]
[1721217997245,2.89797,3450.7,3449.9,2.89856]
[1721217997445,0.06657889,3450.6,3450.0,2.89854]
[1721217997681,2.3828,3450.5,3449.9,0.30060189]
[1721217997987,2.44918746,3450.5,3449.9,3.19918189]
[1721217998190,0.06638746,3450.5,3450.0,2.89855]
[1721217998479,5.6858,3451.0,3450.0,2.89855]
[1721217998480,5.29256,3451.0,3450.0,2.89855]
[1721217998692,0.06609834,3450.4,3450.2,1.7]
[1721217998984,2.89757,3451.2,3450.3,2.89824]
[1721217999157,0.06202175,3451.1,3450.3,2.89824]
[1721217999359,0.06202175,3451.1,3450.4,1.049653]
[1721217999580,0.06202175,3451.1,3450.5,0.05795386]
[1721217999882,2.89721,3451.6,3450.7,2.8979]
[1721218000092,0.05758819,3451.0,3450.7,2.8979]
[1721218000261,2.8973,3451.5,3450.7,2.8979]
[1721218000457,2.8973,3451.5,3450.8,0.579588]
[1721218000654,0.05779676,3451.4,3450.8,0.579588]
[1721218001267,0.05779676,3451.4,3450.8,2.89787]
[1721218001479,2.8972,3451.6,3450.8,2.89787]
[1721218001779,0.05795583,3451.3,3450.8,2.89787]
[1721218001992,0.0579037,3451.2,3450.8,2.89787]
[1721218002185,2.89729,3451.5,3450.8,2.89787]
[1721218002394,2.95538796,3451.4,3450.9,0.289787]
[1721218002557,2.95538796,3451.4,3450.5,2.89809]
[1721218002758,2.89756,3451.2,3450.5,2.89812]
[1721218002985,2.33198222,3451.1,3450.0,2.89854]
[1721218003160,2.89796,3450.7,3450.0,2.89854]
[1721218003359,0.05772451,3450.6,3450.0,2.89854]
[1721218003560,0.05772451,3450.6,3450.0,3.56930491]
[1721218004177,0.05772451,3450.6,3449.9,3.19917189]
[1721218004452,0.05772451,3450.6,3450.0,2.89853]
[1721218004661,0.05772451,3450.6,3449.9,3.19920189]
[1721218004860,0.05772451,3450.6,3450.0,2.89854]
[1721218005065,0.05772451,3450.6,3449.9,3.19916189]
[1721218005276,0.05772451,3450.6,3449.9,3.82357808]
[1721218005622,0.05772451,3450.6,3450.0,2.89853]
[1721218005899,2.89821,3450.4,3449.5,0.45432882]
[1721218006058,2.89821,3450.4,3449.5,3.35327882]
[1721218006263,0.05682129,3450.3,3449.6,0.3005435]
[1721218006459,0.05682129,3450.3,3449.6,0.92499285]
[1721218006685,2.89821,3450.4,3449.6,0.92499285]
[1721218007084,0.05672376,3450.3,3449.7,2.89877]
[1721218007497,2.89821,3450.4,3449.7,2.89877]
[1721218007665,2.89821,3450.4,3449.7,3.87554128]
[1721218007866,0.05672376,3450.3,3449.7,3.87554128]
[1721218008202,2.89821,3450.4,3449.7,3.87554128]
[1721218008402,2.95501376,3450.3,3449.7,0.97677128]
[1721218008765,2.89879,3449.8,3449.6,0.3005435]
[1721218009097,0.05652218,3449.7,3449.2,7.44]
[1721218009400,0.05652218,3449.7,3449.6,2.89888]
[1721218009572,2.89822,3450.4,3449.6,2.89888]
[1721218009781,0.05676229,3450.3,3449.7,2.89877]
[1721218009962,0.05676229,3450.3,3449.8,2.8987]
[1721218010167,2.4704,3450.7,3449.8,2.8987]
[1721218010380,0.05657447,3450.6,3449.7,0.884265]
[1721218010584,0.05657447,3450.6,3450.1,2.89845]
[1721218010812,2.89726,3451.6,3450.1,3.045]
[1721218010813,2.4704,3451.2,3450.1,3.045]
[1721218011118,0.05656284,3451.1,3450.5,2.89806]
[1721218011263,0.05656284,3451.1,3450.6,2.95597404]
[1721218011476,2.4704,3451.7,3450.9,2.89777]
[1721218011708,0.05486048,3451.6,3450.9,2.89777]
[1721218011905,2.95206048,3451.6,3450.9,2.89777]
[1721218012149,1.13391353,3451.6,3450.6,2.898]
[1721218012449,2.89746,3451.3,3450.6,2.898]
[1721218012592,0.05466543,3451.2,3450.6,2.898]
[1721218013504,0.05466543,3451.2,3450.4,2.89813]
[1721218013695,0.05466543,3451.2,3450.6,2.89799]
[1721218014232,2.89792,3450.8,3450.3,7.44]
[1721218014412,2.89809,3450.6,3449.8,2.89869]
[1721218014600,0.05456636,3450.5,3449.8,2.89869]
[1721218015099,0.05456636,3450.5,3449.9,2.89858]
[1721218015609,0.0545142,3450.4,3449.9,2.89858]
[1721218015825,5.31272,3450.8,3450.0,2.89853]
[1721218015996,2.95263067,3450.7,3450.0,2.89853]
[1721218016198,2.89807,3450.6,3450.0,4.3106785]
[1721218016421,0.054539,3450.5,3450.0,1.4121485]
[1721218016627,2.89807,3450.6,3450.0,1.4121485]
[1721218016828,2.89807,3450.6,3449.9,2.89861]
[1721218016829,0.054539,3450.5,3449.9,2.89861]
[1721218017046,2.952669,3450.5,3449.4,2.89901]
[1721218017197,5.31273,3450.8,3449.4,2.89905]
[1721218017399,2.89847,3450.1,3449.4,2.89905]
[1721218017601,2.89837,3450.3,3449.5,2.89894]
[1721218017804,0.05452598,3450.2,3449.5,2.89894]
[1721218019338,2.89846,3450.1,3449.3,2.89907]
[1721218019694,0.05442165,3450.0,3449.4,2.899]
[1721218020099,0.05442165,3450.0,3449.2,0.30053795]
[1721218020400,0.05442165,3450.0,3449.1,2.89927]
[1721218020401,2.8986,3450.0,3449.3,2.89907]
[1721218020610,0.05419852,3449.9,3449.3,2.89907]
[1721218021101,2.89847,3450.1,3449.3,2.89907]
[1721218021304,0.05414634,3449.8,3449.4,2.89905]
[1721218021523,2.89835,3450.3,3449.3,3.50907418]
[1721218021733,0.05409416,3449.7,3449.5,2.89896]
[1721218021917,2.89826,3450.4,3449.5,2.89896]
[1721218022113,2.89814,3450.5,3449.7,2.89878]
[1721218022114,5.79635,3450.5,3449.7,2.89878]
[1721218022440,2.4148,3450.8,3449.7,2.89878]
[1721218022441,2.9526757,3450.4,3449.7,2.89878]
[1721218023611,0.0544557,3450.4,3449.7,3.478554]
[1721218023812,2.89806,3450.6,3449.7,2.89878]
[1721218024016,0.05450785,3450.5,3449.6,2.89883]
[1721218024244,0.05450785,3450.5,3449.5,2.89893]
[1721218024245,2.89824,3450.4,3449.5,2.89893]
[1721218024551,2.89838,3450.2,3449.5,2.89893]
[1721218024849,0.05457783,3450.1,3449.3,2.89911]
[1721218025034,2.95304783,3450.1,3449.4,2.89899]
[1721218025825,2.95304783,3450.1,3449.4,2.192577]
[1721218026714,5.85159783,3450.1,3449.2,6.10014181]
[1721218026911,5.25877,3450.0,3449.2,3.20096181]
[1721218027145,6.07995178,3450.0,3449.2,6.10011181]
[1721218027469,0.05432858,3449.9,3449.2,3.20101181]
[1721218027674,2.95296858,3449.9,3449.2,3.20101181]
[1721218027828,2.95296858,3449.9,3449.2,2.8992]
[1721218028325,2.95296858,3449.9,3449.2,3.20119939]
[1721218029068,2.95296858,3449.9,3449.2,3.20120939]
[1721218029386,2.89872,3449.8,3449.2,0.30199939]
[1721218029558,2.89881,3449.7,3449.0,2.89931]
[1721218029758,2.95287549,3449.7,3449.1,2.8993]
[1721218030630,0.05406549,3449.7,3449.1,2.8993]
[1721218030830,3.51207504,3449.9,3449.1,2.8993]
[1721218030831,2.89864,3449.9,3449.1,2.8993]
[1721218031071,0.05411767,3449.8,3449.2,0.30233183]
[1721218032063,0.05411767,3449.8,3449.2,2.62760049]
[1721218032385,2.8984,3450.2,3449.4,2.89904]
[1721218032544,5.79685,3450.2,3449.4,2.89904]
[1721218032860,0.05428083,3450.1,3449.4,2.89904]
[1721218033831,2.89857,3450.0,3449.4,2.89904]
[1721218034030,0.05417648,3449.9,3449.4,2.89904]
[1721218034479,0.05417648,3449.9,3449.4,3.50905318]
[1721218034682,5.35123,3450.4,3449.4,3.50905318]
[1721218034888,0.05438884,3450.3,3449.4,3.50905318]
[1721218035101,0.05438884,3450.3,3449.6,2.89881]
[1721218035261,0.05438884,3450.3,3450.0,2.89851]
[1721218035462,2.89788,3450.8,3450.0,2.89848]
[1721218035672,0.05453511,3450.7,3450.0,2.8985]
[1721218036249,0.05453511,3450.7,3450.1,2.89846]
[1721218036883,5.38254,3450.9,3450.1,5.79687]
[1721218037094,0.0544971,3450.8,3450.1,5.79687]
[1721218037293,0.0544971,3450.8,3450.2,2.89835]
[1721218037481,0.0544971,3450.8,3450.3,2.89826]
[1721218039769,0.05450455,3450.7,3450.2,0.579676]
[1721218040014,2.89772,3451.0,3450.1,2.8984]
[1721218040212,2.89772,3451.0,3449.9,2.8986]
[1721218040213,0.05466457,3450.9,3449.9,2.8986]
[1721218040511,2.89802,3450.7,3449.9,2.8986]
[1721218040811,2.95257089,3450.6,3449.9,2.8986]
[1721218041201,2.95257089,3450.6,3449.9,5.79718]
[1721218041404,2.95257089,3450.6,3450.0,2.89853]
[1721218041581,2.95257089,3450.6,3450.0,2.89854]
[1721218041917,2.89815,3450.5,3449.4,3.61006318]
[1721218042127,2.3683,3450.4,3449.6,2.89882]
[1721218042412,2.42270623,3450.4,3449.7,2.89877]
[1721218042576,2.42270623,3450.4,3449.7,3.53953532]
[1721218043411,2.42270623,3450.4,3449.8,2.89871]
[1721218043579,0.05440623,3450.4,3449.8,2.89871]
[1721218043774,2.89796,3450.7,3449.8,2.89871]
[1721218043994,0.85666858,3452.1,3450.8,0.1103547]
[1721218044203,2.3683,3451.7,3450.8,1.34739972]
[1721218044416,2.89734,3451.5,3450.6,2.89797]
[1721218044579,5.26544,3451.7,3450.6,2.89797]
[1721218044782,2.89721,3451.6,3450.7,2.89789]
[1721218044980,2.89721,3451.6,3450.8,2.89787]
[1721218045239,0.05094991,3451.5,3451.0,2.89767]
[1721218045392,2.89681,3452.1,3450.8,3.477454]
[1721218045393,2.89684,3452.1,3451.3,2.89744]
[1721218045598,2.89684,3452.1,3451.2,2.89748]
[1721218045599,2.8967,3452.2,3451.4,2.89737]
[1721218045777,0.05153716,3452.1,3451.5,2.89723]
[1721218045975,2.89656,3452.4,3451.5,2.89723]
[1721218046211,0.810154,3452.3,3451.5,2.89723]
[1721218046415,3.75844538,3452.3,3451.5,2.89723]
[1721218046616,2.8967,3452.2,3451.5,2.89723]
[1721218046819,0.05153716,3452.1,3451.5,2.89723]
[1721218046981,0.05153716,3452.1,3451.3,2.89738]
[1721218047203,0.05153716,3452.1,3451.5,2.89728]
[1721218047824,0.05153716,3452.1,3451.6,2.89719]
[1721218048028,3.0,3452.4,3451.7,2.89711]
[1721218048237,5.20495,3452.5,3451.7,2.89711]
[1721218048238,0.05150218,3452.3,3451.7,2.89711]
[1721218048428,2.8963,3452.7,3451.7,2.89711]
[1721218048429,2.89637,3452.6,3451.7,2.89711]
[1721218048644,0.05208726,3452.5,3451.7,2.89711]
[1721218049203,0.05208726,3452.5,3451.8,5.3392]
[1721218049509,2.4397,3452.9,3452.4,2.89653]
[1721218049750,2.4397,3452.9,3452.5,2.89645]
[1721218049926,0.05090119,3452.8,3452.6,2.89636]
[1721218050123,0.05090119,3452.8,3452.7,2.89628]
[1721218050304,2.3728,3453.4,3452.2,1.7]
[1721218050502,0.0509731,3452.8,3452.2,1.7]
[1721218050759,0.23728,3453.3,3452.5,2.89642]
[1721218050936,0.05041608,3452.7,3452.5,2.89642]
[1721218051253,0.23728,3453.3,3452.8,2.89619]
[1721218051445,0.04897739,3453.2,3452.8,2.89619]
[1721218051654,0.23728,3453.3,3452.8,2.89619]
[1721218051832,0.04897739,3453.2,3452.5,2.89642]
[1721218052147,0.04897739,3453.2,3452.8,2.89618]
[1721218052148,0.60444713,3453.2,3452.8,2.89618]
[1721218052353,0.04897739,3453.2,3452.8,2.89618]
[1721218052581,0.04897739,3453.2,3452.2,1.7]
[1721218052582,0.04897739,3453.2,3452.6,2.89629]
[1721218052861,0.04892532,3453.1,3452.5,2.89644]
[1721218053016,2.89597,3453.1,3452.2,1.7]
[1721218053461,0.04905009,3453.0,3452.2,1.7]
[1721218053630,0.04905009,3453.0,3452.6,2.89631]
[1721218053954,0.23728,3453.3,3452.5,2.89639]
[1721218054128,0.23728,3453.3,3452.2,4.59668]
[1721218054129,0.04885887,3452.9,3452.2,4.59668]
[1721218054334,5.37372,3453.2,3452.4,2.89653]
[1721218054535,0.04880679,3452.8,3452.5,2.89644]
[1721218054760,5.37372,3453.2,3452.4,2.89652]
[1721218055061,0.85067,3453.1,3452.4,2.89652]
[1721218055360,0.04891095,3453.0,3452.4,2.89652]
[1721218055515,0.04891095,3453.0,3452.5,2.89644]
[1721218057984,0.0492476,3453.7,3453.1,2.89593]
[1721218059169,0.0492476,3453.7,3453.0,2.89603]
[1721218059375,2.9446876,3453.7,3453.0,2.89603]
[1721218059670,0.82961276,3453.6,3452.7,3.045]
[1721218059831,2.4561,3453.8,3453.0,2.89596]
[1721218059832,0.04914348,3453.5,3453.0,2.89596]
[1721218060029,5.35151,3453.8,3453.0,2.89596]
[1721218060232,0.0492476,3453.7,3453.1,2.89594]
[1721218061471,0.0492476,3453.7,3453.3,2.8957]
[1721218061647,5.4539,3454.3,3453.3,2.8957]
[1721218061648,2.89504,3454.2,3453.3,2.8957]
[1721218061850,1.1738877,3454.1,3453.5,2.89561]
[1721218062159,1.1738877,3454.1,3453.3,2.89574]
[1721218062669,1.1738877,3454.1,3453.4,2.89564]
[1721218062870,1.1738877,3454.1,3453.3,2.89574]
[1721218063041,4.1738877,3454.1,3453.4,2.89568]
[1721218063381,1.25228177,3454.0,3453.4,2.89568]
[1721218063678,0.04775761,3453.9,3453.5,2.89561]
[1721218064073,0.04775761,3453.9,3453.2,2.89583]
[1721218064256,0.04775761,3453.9,3453.4,2.89568]
[1721218064441,0.04775761,3453.9,3453.5,2.89559]
[1721218064637,0.04775761,3453.9,3453.6,2.89552]
[1721218064843,2.4598,3454.7,3453.8,2.89536]
[1721218065043,0.04564188,3454.6,3453.9,1.7]
[1721218065256,0.04564188,3454.6,3454.2,2.89497]
[1721218065985,2.89444,3454.9,3454.2,2.89497]
[1721218066296,0.818211,3454.8,3454.2,2.89497]
[1721218066461,0.04570601,3454.7,3454.2,2.89497]
[1721218066864,0.04570601,3454.7,3454.0,2.89512]
[1721218067064,0.04570601,3454.7,3454.1,2.89509]
[1721218067478,0.04570601,3454.7,3454.2,2.89501]
[1721218067769,0.42154171,3454.7,3454.2,2.89501]
[1721218069408,0.04570601,3454.7,3454.2,2.89501]
[1721218069552,0.04570601,3454.7,3454.3,2.89488]
[1721218069753,5.28768,3455.1,3454.3,2.89488]
[1721218069952,0.04615683,3454.6,3454.3,2.89488]
[1721218070158,5.28768,3455.1,3454.3,2.89488]
[1721218070371,0.04623921,3454.5,3454.0,2.89515]
[1721218070620,2.89461,3454.7,3453.8,2.89532]
[1721218070778,0.04613276,3454.4,3453.6,2.89547]
[1721218071103,0.04588372,3454.3,3453.9,2.89521]
[1721218072287,0.04588372,3454.3,3453.8,2.89531]
[1721218072499,2.89474,3454.6,3453.8,2.89531]
[1721218073016,0.04667254,3454.5,3453.9,2.89526]
[1721218077036,2.94145254,3454.5,3453.7,2.89536]
[1721218077180,2.94049158,3454.5,3453.7,2.89536]
[1721218077586,3.23454074,3454.5,3453.7,2.89536]
[1721218077936,2.3924,3454.4,3453.4,7.44]
[1721218078081,2.89529,3453.9,3452.9,7.44]
[1721218078285,2.3924,3453.6,3453.0,2.89603]
[1721218078486,5.28793,3453.6,3453.0,2.89603]
[1721218078684,0.04474742,3453.5,3453.0,2.89603]
[1721218078996,5.28793,3453.6,3452.7,2.8962]
[1721218079318,2.3924,3453.6,3452.9,2.89611]
[1721218079633,0.0445249,3453.5,3453.0,2.89602]
[1721218080304,2.3924,3453.6,3453.0,2.89602]
[1721218080687,0.04300431,3453.5,3452.8,2.89614]
[1721218081027,0.04300431,3453.5,3452.7,2.89624]
[1721218081321,0.04300431,3453.5,3453.0,2.89601]
[1721218081522,0.04300431,3453.5,3452.9,2.3084]
[1721218081731,2.3599,3454.3,3452.8,2.89615]
[1721218081732,2.89524,3454.0,3452.8,2.89615]
[1721218081885,2.89543,3453.8,3453.0,2.896]
[1721218082085,2.93872475,3453.7,3453.0,2.896]
[1721218082332,2.93872475,3453.7,3452.9,2.89606]
[1721218082503,2.93872475,3453.7,3453.0,2.89598]
[1721218082695,0.04327475,3453.7,3453.1,2.89593]
[1721218082894,2.89528,3453.9,3453.1,2.89593]
[1721218083216,0.0433305,3453.8,3453.2,2.89585]
[1721218083415,0.0433305,3453.8,3453.0,1.7]
[1721218083643,0.0433305,3453.8,3453.5,2.8956]
[1721218083842,2.89472,3454.6,3453.8,2.89529]
[1721218084046,2.3011,3454.7,3454.0,2.89518]
[1721218084212,2.3011,3454.7,3454.2,2.89501]
[1721218084725,0.528768,3455.0,3454.2,2.89501]
[1721218084907,0.00093195,3454.9,3454.2,2.89501]
[1721218085110,0.528768,3455.0,3454.2,2.89501]
[1721218085315,0.528768,3455.0,3454.3,2.89493]
[1721218085567,2.3011,3455.1,3454.4,2.89484]
[1721218085838,0.00136271,3454.9,3454.6,2.89468]
[1721218086041,0.00130857,3455.0,3454.6,2.89468]
[1721218086248,0.00122834,3454.8,3454.6,2.89468]
[1721218086407,2.8941,3455.3,3454.6,2.89468]
[1721218086607,0.00109397,3454.7,3454.6,2.89468]
[1721218086803,3.711326,3455.3,3454.6,2.89468]
[1721218087007,0.00109397,3454.7,3454.6,2.89468]
[1721218087203,2.89406,3455.4,3454.6,2.89468]
[1721218087452,5.27797,3455.6,3454.6,2.89468]
[1721218087453,0.00109397,3454.7,3454.6,2.89468]
[1721218087741,5.27796,3455.6,3454.8,2.89445]
[1721218087943,0.041227,3455.5,3454.8,2.89445]
[1721218088148,2.935177,3455.5,3454.5,2.89477]
[1721218088448,2.935177,3455.5,3454.3,12.185]
[1721218088449,0.041227,3455.5,3454.3,12.185]
[1721218088606,0.041227,3455.5,3454.4,1.2185]
[1721218089043,0.041227,3455.5,3454.8,1.7]
[1721218089825,0.041227,3455.5,3454.9,2.89441]
[1721218090430,0.041227,3455.5,3455.2,2.89418]
[1721218091334,0.041227,3455.5,3455.0,2.89429]
[1721218091534,0.04049136,3455.5,3454.8,4.59444]
[1721218091735,0.04049136,3455.5,3454.9,2.89441]
[1721218093115,0.04049136,3455.5,3455.1,2.89426]
[1721218093446,0.04049136,3455.5,3454.7,2.89459]
[1721218093746,0.04049136,3455.5,3454.9,2.89437]
[1721218093950,0.04049136,3455.5,3455.0,2.89435]
[1721218094162,0.04049136,3455.5,3455.2,1.7]
[1721218094515,0.04049136,3455.5,3455.2,4.59412]
[1721218094717,0.04049136,3455.5,3455.3,0.0578778]
[1721218094950,2.4295,3456.1,3455.5,2.89391]
[1721218095154,0.03982371,3456.0,3455.7,1.7]
[1721218095315,0.03982371,3456.0,3455.8,0.05786712]
[1721218095652,0.03982371,3456.0,3455.8,2.95148712]
[1721218095949,0.03982371,3456.0,3455.7,4.59368]
[1721218095950,0.03982371,3456.0,3455.9,5.7872]
[1721218096252,2.4828,3456.9,3456.2,2.89333]